[Event "26th Troya Open 2018"]
[Site "Canakkale"]
[Date "2018.08.11"]
[Round "9.8"]
[White "Can, Melih Kaan"]
[Black "Sayber, Zeki"]
[Result "1-0"]
[ECO "B08"]
[WhiteElo "2183"]
[BlackElo "1984"]
[Annotator "NA"]
[PlyCount "51"]
[EventDate "2018.08.06"]
[EventType "swiss"]
[EventCountry "TUR"]
[SourceTitle "playchess.com"]
[Source "ChessBase"]
[SourceQuality "1"]
[TimeControl "5400+30"]

1. e4 {[%emt 0:06:30]} d6 {[%emt 0:00:30]} 2. d4 {[%emt 0:00:30]} Nf6 {[%emt 0:01:30]} 3. Nc3 {[%emt 0:00:30]} g6 {[%emt 0:00:00]} 4. Nf3 {[%emt 0:02:30]} Bg7 {[%emt 0:01:00]} 5. h3 {[%emt 0:00:30]} O-O {[%emt 0:01:30]} 6. Bd3 {[%emt 0:00:30]} Nc6 {[%emt 0:00:30]} 7. O-O {[%emt 0:00:30]} e5 {[%emt 0:00:30]} 8. d5 {[%emt 0:00:30]} Ne7 {[%emt 0:01:30]} 9. a4 {[%emt 0:00:30]} c6 {[%emt 0:00:00]} 10. dxc6 {[%emt 0:00:00]} bxc6 {[%emt 0:00:00]} 11. Re1 {[%emt 0:03:00]} a5 {[%emt 0:12:30]} 12. b3 {[%emt 0:00:00]} Be6 {[%emt 0:07:30]} 13. Ba3 {[%emt 0:01:00]} Qd7 {[%emt 0:01:30]} 14. Bf1 {[%emt 0:12:30]} Rfd8 {[%emt 0:03:30]} 15. Qd2 {[%emt 0:07:30]} h6 {[%emt 0:00:30]} 16. Rad1 {[%emt 0:00:30]} Ne8 {[%emt 0:00:30]} 17. Qc1 {[%emt 0:02:30]} Qc7 {[%emt 0:02:30]} 18. Bc4 {[%emt 0:07:30]} Bxc4 {[%emt 0:22:30]} 19. bxc4 {[%emt 0:00:30]} Rd7 {[%emt 0:01:30]} 20. c5 {[%emt 0:06:30]} Rad8 {[%emt 0:06:30]} 21. cxd6 {[%emt 0:05:30]} Nxd6 {[%emt 0:00:30]} 22. Bxd6 {[%emt 0:00:30]} Rxd6 {[%emt 0:00:30]} 23. Rxd6 {[%emt 0:00:30]} Rxd6 {[%emt 0:00:30]} 24. Qa3 {[%emt 0:00:30]} f6 {[%emt 0:03:30]} 25. Qc5 {[%emt 0:01:30]} Qd8 {[%emt 0:00:30]} 26. Rb1 {[%emt 0:00:30] [%clk 0:00.00]} 1-0

[Event "26th Troya Open 2018"]
[Site "Canakkale"]
[Date "2018.08.11"]
[Round "9.9"]
[White "Soyunlu, Narmin"]
[Black "Al Shabibi, Mohammed Sultan"]
[Result "0-1"]
[ECO "A41"]
[WhiteElo "2061"]
[BlackElo "1382"]
[Annotator "NA"]
[PlyCount "55"]
[EventDate "2018.08.06"]
[EventType "swiss"]
[EventCountry "TUR"]
[SourceTitle "playchess.com"]
[Source "ChessBase"]
[SourceQuality "1"]
[TimeControl "5400+30"]

1. d4 {[%emt 0:08:30]} c6 {[%emt 0:09:30]} 2. c4 {[%emt 0:00:00]} d6 {[%emt 0:00:30]} 3. Nf3 {[%emt 0:00:00]} Nd7 {[%emt 0:00:30]} 4. Nc3 {[%emt 0:00:30]} e5 {[%emt 0:00:00]} 5. e4 {[%emt 0:00:30]} a5 {[%emt 0:01:00]} 6. g3 {[%emt 0:01:30]} Be7 {[%emt 0:00:30]} 7. Bg2 {[%emt 0:00:30]} Ngf6 {[%emt 0:00:30]} 8. O-O {[%emt 0:00:30]} O-O {[%emt 0:00:00]} 9. Re1 {[%emt 0:03:30]} Re8 {[%emt 0:01:00]} 10. h3 {[%emt 0:00:00]} Bf8 {[%emt 0:03:30]} 11. Be3 {[%emt 0:05:00]} exd4 {[%emt 0:01:30]} 12. Nxd4 {[%emt 0:01:30]} Nc5 {[%emt 0:00:30]} 13. Qc2 {[%emt 0:00:30]} Qe7 {[%emt 0:02:30]} 14. Rad1 {[%emt 0:03:30]} Qe5 {[%emt 0:09:30]} 15. Bf4 {[%emt 0:05:30]} Qh5 {[%emt 0:02:30]} 16. g4 {[%emt 0:08:30]} Qg6 {[%emt 0:01:30]} 17. Nf5 {[%emt 0:09:30]} h5 {[%emt 0:01:30]} 18. Nh4 {[%emt 0:02:30]} Qh7 {[%emt 0:01:30]} 19. g5 {[%emt 0:00:00]} Ne6 {[%emt 0:02:30]} 20. Be3 {[%emt 0:05:00]} Nd7 {[%emt 0:01:30]} 21. Nf5 {[%emt 0:10:30]} Ne5 {[%emt 0:11:30]} 22. Ne2 {[%emt 0:05:30]} Nc7 {[%emt 0:10:30] [%clk 0:15.47]} 23. Bb6 {[%emt 0:22:31]} Na6 {[%emt 0:35:44]} 24. Bxa5 {[%emt 0:05:59]} Nc5 {[%emt 0:00:30]} 25. Bc7 {[%emt 0:00:30]} Ne6 {[%emt 0:00:30]} 26. Bxd6 {[%emt 0:00:30]} Nxg5 {[%emt 0:00:30]} 27. Bxe5 {[%emt 0:00:30]} Rxe5 {[%emt 0:00:30]} 28. Rd8 {[%emt 0:00:30]} 0-1

[Event "26th Troya Open 2018"]
[Site "Canakkale"]
[Date "2018.08.11"]
[Round "9.11"]
[White "Gokbulut, Julia"]
[Black "Sahin, Handenur"]
[Result "0-1"]
[ECO "D23"]
[WhiteElo "2076"]
[BlackElo "1984"]
[Annotator "NA"]
[PlyCount "46"]
[EventDate "2018.08.06"]
[EventType "swiss"]
[EventCountry "TUR"]
[SourceTitle "playchess.com"]
[Source "ChessBase"]
[SourceQuality "1"]
[TimeControl "5400+30"]

1. d4 {[%emt 0:00:30]} d5 {[%emt 0:00:30]} 2. Nf3 {[%emt 0:00:00]} Nf6 {[%emt 0:01:30]} 3. c4 {[%emt 0:00:00]} c6 {[%emt 0:00:00]} 4. Qb3 {[%emt 0:00:30]} dxc4 {[%emt 0:00:00]} 5. Qxc4 {[%emt 0:00:00]} Bg4 {[%emt 0:00:30]} 6. Nc3 {[%emt 0:00:00]} Nbd7 {[%emt 0:00:30]} 7. e4 {[%emt 0:00:30]} e6 {[%emt 0:05:30]} 8. Be3 {[%emt 0:04:30]} Rc8 {[%emt 0:04:30]} 9. Qd3 {[%emt 0:06:30]} Be7 {[%emt 0:04:30]} 10. Nd2 {[%emt 0:04:30]} c5 {[%emt 0:12:30]} 11. h3 {[%emt 0:02:30]} Bh5 {[%emt 0:06:30]} 12. g4 {[%emt 0:03:30]} cxd4 {[%emt 0:04:30]} 13. Bxd4 {[%emt 0:03:30]} e5 {[%emt 0:05:30]} 14. Bxa7 {[%emt 0:00:30]} Bg6 {[%emt 0:00:30]} 15. Be3 {[%emt 0:00:30]} O-O {[%emt 0:01:30]} 16. f3 {[%emt 0:05:30]} Qc7 {[%emt 0:05:30]} 17. g5 {[%emt 0:05:30]} Nh5 {[%emt 0:01:30]} 18. Nd5 {[%emt 0:08:30]} Qd8 {[%emt 0:00:00]} 19. Rg1 {[%emt 0:03:30]} Bc5 {[%emt 0:08:00]} 20. b4 {[%emt 0:04:30]} Bxe3 {[%emt 0:03:30]} 21. Qxe3 {[%emt 0:00:30]} Nf4 {[%emt 0:01:30]} 22. Nxf4 {[%emt 0:06:30]} exf4 {[%emt 0:00:00]} 23. Qxf4 {[%emt 0:06:30]} Qb6 {[%emt 0:03:00] [%clk 0:07.12]} 0-1

[Event "26th Troya Open 2018"]
[Site "Canakkale"]
[Date "2018.08.11"]
[Round "9.12"]
[White "Yordanova, Svetla"]
[Black "Buke, Furkan"]
[Result "0-1"]
[ECO "A37"]
[WhiteElo "2116"]
[BlackElo "1925"]
[Annotator "ChessBase"]
[PlyCount "138"]
[EventDate "2018.08.06"]
[EventType "swiss"]
[EventCountry "TUR"]
[SourceTitle "playchess.com"]
[Source "ChessBase"]
[SourceQuality "1"]
[TimeControl "5400+30"]

1. Nf3 {[%emt 0:00:30]} c5 {[%emt 0:00:30]} 2. c4 {[%emt 0:00:30]} g6 {[%emt 0:00:30]} 3. Nc3 {[%emt 0:00:30]} Bg7 {[%emt 0:00:00]} 4. g3 {[%emt 0:01:30]} Nc6 {[%emt 0:00:00]} 5. Bg2 {[%emt 0:00:30]} e6 {[%emt 0:00:30]} 6. O-O {[%emt 0:00:30]} Nge7 {[%emt 0:00:00]} 7. d3 {[%emt 0:02:30]} O-O {[%emt 0:02:00]} 8. Bd2 {[%emt 0:00:00]} d6 {[%emt 0:00:30]} 9. Rb1 {[%emt 0:00:00]} b6 {[%emt 0:00:00]} 10. a3 {[%emt 0:00:30]} Bb7 {[%emt 0:00:00]} 11. b4 {[%emt 0:02:30]} Qd7 {[%emt 0:00:30]} 12. Ne1 {[%emt 0:04:30]} Rac8 {[%emt 0:07:30]} 13. Nc2 {[%emt 0:00:30]} Nf5 {[%emt 0:02:30]} 14. Ne3 {[%emt 0:13:30]} Nxe3 {[%emt 0:07:30]} 15. fxe3 {[%emt 0:03:30]} Ne5 {[%emt 0:03:30]} 16. e4 {[%emt 0:07:30]} f5 {[%emt 0:02:30]} 17. Qb3 {[%emt 0:07:30]} Ba8 {[%emt 0:08:30]} 18. h3 {[%emt 0:04:30]} Kh8 {[%emt 0:08:30]} 19. Kh2 {[%emt 0:00:30]} fxe4 {[%emt 0:01:30]} 20. Bxe4 {[%emt 0:08:30]} Bxe4 {[%emt 0:03:30]} 21. Nxe4 {[%emt 0:00:30]} d5 {[%emt 0:00:30]} 22. cxd5 {[%emt 0:00:30]} exd5 {[%emt 0:00:00]} 23. Nf2 {[%emt 0:07:30]} c4 {[%emt 0:03:00]} 24. dxc4 {[%emt 0:01:30]} dxc4 {[%emt 0:00:30]} 25. Qc2 {[%emt 0:00:30]} c3 {[%emt 0:01:30]} 26. Bf4 {[%emt 0:00:30]} Nc4 {[%emt 0:01:30]} 27. Rbd1 {[%emt 0:01:30]} Qc6 {[%emt 0:02:30]} 28. Ng4 {[%emt 0:05:30]} h5 {[%emt 0:02:30] [%clk 0:03.14]} 29. b5 {[%emt 0:17:38]} Qe6 {[%emt 0:39:16]} 30. Nf2 {[%emt 0:00:30]} Rxf4 {[%emt 0:00:30]} 31. gxf4 {[%emt 0:00:30]} Ne3 {[%emt 0:00:30]} 32. Qd3 {[%emt 0:00:30]} c2 {[%emt 0:00:30]} 33. Rg1 {[%emt 0:00:30]} cxd1=Q {[%emt 0:00:30]} 34. Nxd1 {[%emt 0:00:30]} Nxd1 {[%emt 0:00:30]} 35. Rxg6 {[%emt 0:00:30]} Qf7 {[%emt 0:00:30]} 36. f5 {[%emt 0:00:30]} Qc7+ {[%emt 0:00:30]} 37. Kg2 {[%emt 0:00:30]} Qf4 {[%emt 0:00:30]} 38. Qxd1 {[%emt 0:00:30]} Qe4+ {[%emt 0:00:30]} 39. Kh2 {[%emt 0:00:30]} Be5+ {[%emt 0:00:30]} 40. Kg1 {[%emt 0:00:30]} Bd4+ {[%emt 0:00:30]} 41. Kh2 {[%emt 0:00:30]} Qe5+ {[%emt 0:00:30]} 42. Kh1 {[%emt 0:00:30]} Qd5+ {[%emt 0:00:30]} 43. Rg2 {[%emt 0:00:30]} Qc5 {[%emt 0:00:30]} 44. Rg5 {[%emt 0:00:30]} Qc1 {[%emt 0:00:30]} 45. Rxh5+ {[%emt 0:00:30]} Kg7 {[%emt 0:00:30]} 46. Qxc1 {[%emt 0:00:30]} Rxc1+ {[%emt 0:00:30]} 47. Kg2 {[%emt 0:00:30]} Rc3 {[%emt 0:00:30]} 48. e4 {[%emt 0:00:30]} Rxa3 {[%emt 0:00:30]} 49. Rg5+ {[%emt 0:00:30]} Kf7 {[%emt 0:00:30]} 50. Rg3 {[%emt 0:00:30]} Rxg3+ {[%emt 0:00:30]} 51. Kxg3 {[%emt 0:00:30]} Kf6 {[%emt 0:00:30]} 52. Kf4 {[%emt 0:00:30]} Be5+ {[%emt 0:00:30]} 53. Kg4 {[%emt 0:00:30]} Bd6 {[%emt 0:00:30]} 54. h4 {[%emt 0:00:30]} Bf8 {[%emt 0:00:30]} 55. Kh5 {[%emt 0:00:30]} Bg7 {[%emt 0:00:30]} 56. Kg4 {[%emt 0:00:30]} Bh6 {[%emt 0:00:30]} 57. e5+ {[%emt 0:00:30]} Kxe5 {[%emt 0:00:30]} 58. Kh5 {[%emt 0:00:30]} Bg7 {[%emt 0:00:30]} 59. Kg6 {[%emt 0:00:30]} Bf6 {[%emt 0:00:30]} 60. h5 {[%emt 0:00:30]} Bh8 {[%emt 0:00:30]} 61. Kg5 {[%emt 0:00:30]} Kd6 {[%emt 0:00:30]} 62. Kg6 {[%emt 0:00:30]} Ke7 {[%emt 0:00:30]} 63. h6 {[%emt 0:00:30]} Be5 {[%emt 0:00:30]} 64. Kh5 {[%emt 0:00:30]} Kf7 {[%emt 0:00:30]} 65. Kg5 {[%emt 0:00:30]} Bf6+ {[%emt 0:00:30]} 66. Kh5 {[%emt 0:00:30]} Bc3 {[%emt 0:00:30]} 67. Kg5 {[%emt 0:00:30]} Bd2+ {[%emt 0:00:30]} 68. Kh5 {[%emt 0:00:30]} Bxh6 {[%emt 0:00:30]} 69. Kxh6 {[%emt 0:00:30]} Kf6 {[%emt 0:01:59]} 0-1

[Event "26th Troya Open 2018"]
[Site "Canakkale"]
[Date "2018.08.11"]
[Round "9.13"]
[White "Ceylan, Arda"]
[Black "Kocakaplan, Emre"]
[Result "0-1"]
[ECO "A77"]
[WhiteElo "1617"]
[BlackElo "1591"]
[Annotator "NA"]
[PlyCount "98"]
[EventDate "2018.08.06"]
[EventType "swiss"]
[EventCountry "TUR"]
[SourceTitle "playchess.com"]
[Source "ChessBase"]
[SourceQuality "1"]
[TimeControl "5400+30"]

1. d4 {[%emt 0:00:30]} Nf6 {[%emt 0:00:30]} 2. Nf3 {[%emt 0:00:30]} e6 {[%emt 0:00:30]} 3. c4 {[%emt 0:00:30]} c5 {[%emt 0:00:30]} 4. d5 {[%emt 0:00:30]} exd5 {[%emt 0:00:30]} 5. cxd5 {[%emt 0:00:30]} d6 {[%emt 0:00:30]} 6. Nc3 {[%emt 0:00:30]} g6 {[%emt 0:00:30]} 7. e4 {[%emt 0:00:30]} Bg7 {[%emt 0:00:30]} 8. Be2 {[%emt 0:00:30]} O-O {[%emt 0:00:30]} 9. O-O {[%emt 0:00:00]} Re8 {[%emt 0:00:00]} 10. Nd2 {[%emt 0:00:00]} a6 {[%emt 0:00:00]} 11. a4 {[%emt 0:00:00]} Nbd7 {[%emt 0:00:00]} 12. Qc2 {[%emt 0:02:00]} Ne5 {[%emt 0:01:00]} 13. f4 {[%emt 0:05:30]} Neg4 {[%emt 0:01:30]} 14. Nf3 {[%emt 0:11:30]} Qe7 {[%emt 0:21:30]} 15. e5 {[%emt 0:14:30]} dxe5 {[%emt 0:11:30]} 16. h3 {[%emt 0:02:30]} e4 {[%emt 0:02:30]} 17. hxg4 {[%emt 0:17:30]} exf3 {[%emt 0:00:30]} 18. gxf3 {[%emt 0:03:30]} Nxg4 {[%emt 0:11:30]} 19. fxg4 {[%emt 0:02:30]} Bd4+ {[%emt 0:04:30]} 20. Kg2 {[%emt 0:02:30]} Bxc3 {[%emt 0:00:00]} 21. bxc3 {[%emt 0:01:30]} Qxe2+ {[%emt 0:01:00]} 22. Qxe2 {[%emt 0:00:30]} Rxe2+ {[%emt 0:00:00]} 23. Kg3 {[%emt 0:00:30]} Bd7 {[%emt 0:01:00]} 24. Ba3 {[%emt 0:00:30]} c4 {[%emt 0:02:30]} 25. a5 {[%emt 0:04:30]} Rae8 {[%emt 0:01:30]} 26. Rab1 {[%emt 0:02:30]} Rc2 {[%emt 0:03:30]} 27. Bb4 {[%emt 0:04:30]} Ree2 {[%emt 0:00:30]} 28. g5 {[%emt 0:02:30]} Rg2+ {[%emt 0:00:30]} 29. Kf3 {[%emt 0:00:30]} Rce2 {[%emt 0:00:30]} 30. f5 {[%emt 0:00:30]} Bxf5 {[%emt 0:00:30]} 31. d6 {[%emt 0:04:00] ˜} Bxb1 {[%emt 0:04:30] 0} 32. Rxb1 {[%emt 0:00:19] ˜} Rd2 {[%emt 0:01:30] 1} 33. Kf4 {[%emt 0:04:48] ˜} Rgf2+ {[%emt 0:01:30] 3} 34. Kg4 {[%emt 0:01:26] [%clk 0:11.56]} f5+ {[%emt 0:01:30]} 35. Kg3 {[%emt 0:01:01]} Rfe2 {[%emt 0:00:30]} 36. Kf3 {[%emt 0:00:48]} Re5 {[%emt 0:02:30]} 37. Kf4 {[%emt 0:00:30]} Re4+ {[%emt 0:00:30]} 38. Kf3 {[%emt 0:00:30]} Rd3+ {[%emt 0:00:30]} 39. Kf2 {[%emt 0:00:00]} Re5 {[%emt 0:00:30]} 40. Rh1 {[%emt 0:00:23]} f4 {[%emt 0:00:30]} 41. Rh4 {[%emt 0:01:49]} Rxg5 {[%emt 0:03:30]} 42. Ke1 {[%emt 0:00:30]} Re5+ {[%emt 0:00:30]} 43. Kf2 {[%emt 0:00:33]} g5 {[%emt 0:00:30]} 44. Rh6 {[%emt 0:00:30]} Kg7 {[%emt 0:00:30]} 45. Rh1 {[%emt 0:00:30]} g4 {[%emt 0:00:30]} 46. Rb1 {[%emt 0:00:30]} g3+ {[%emt 0:00:30]} 47. Kg2 {[%emt 0:00:00]} Re2+ {[%emt 0:02:30]} 48. Kh3 {[%emt 0:00:11]} h5 {[%emt 0:00:30]} 49. Kh4 {[%emt 0:00:30]} Kg6 {[%emt 0:00:00]} 0-1

[Event "26th Troya Open 2018"]
[Site "Canakkale"]
[Date "2018.08.11"]
[Round "9.14"]
[White "Istekli, Erdem"]
[Black "Sar, Can"]
[Result "1/2-1/2"]
[ECO "B27"]
[WhiteElo "1713"]
[BlackElo "1786"]
[Annotator "NA"]
[PlyCount "66"]
[EventDate "2018.08.06"]
[EventType "swiss"]
[EventCountry "TUR"]
[SourceTitle "playchess.com"]
[Source "ChessBase"]
[SourceQuality "1"]
[TimeControl "5400+30"]

1. e4 {[%emt 0:00:30] 2} c5 {[%emt 0:00:30] 2} 2. Nf3 {[%emt 0:00:30] 2} g6 {[%emt 0:00:30]} 3. d4 {[%emt 0:00:30]} cxd4 {[%emt 0:00:30]} 4. Qxd4 {[%emt 0:00:00]} Nf6 {[%emt 0:00:30]} 5. e5 {[%emt 0:00:00]} Nc6 {[%emt 0:00:30]} 6. Qa4 {[%emt 0:00:00]} Nd5 {[%emt 0:00:30]} 7. Qe4 {[%emt 0:00:00]} Nb6 {[%emt 0:00:00]} 8. Be2 {[%emt 0:07:30]} Bg7 {[%emt 0:03:00]} 9. O-O {[%emt 0:00:30]} O-O {[%emt 0:01:30]} 10. Nc3 {[%emt 0:08:30]} d5 {[%emt 0:04:30]} 11. exd6 {[%emt 0:01:30]} exd6 {[%emt 0:00:30]} 12. Bg5 {[%emt 0:21:30]} Qd7 {[%emt 0:06:30]} 13. Qh4 {[%emt 0:07:30]} Qg4 {[%emt 0:00:30]} 14. Rad1 {[%emt 0:03:30]} Qxh4 {[%emt 0:09:30]} 15. Bxh4 {[%emt 0:00:00]} Bf5 {[%emt 0:01:30]} 16. Rxd6 {[%emt 0:05:00]} Bxc2 {[%emt 0:00:30]} 17. Rc1 {[%emt 0:00:30]} Bf5 {[%emt 0:01:30]} 18. Rcd1 {[%emt 0:02:30]} Rfe8 {[%emt 0:00:30]} 19. Bb5 {[%emt 0:03:30]} Rac8 {[%emt 0:04:30]} 20. h3 {[%emt 0:02:30]} a6 {[%emt 0:07:30]} 21. Bxc6 {[%emt 0:00:30]} Rxc6 {[%emt 0:00:30]} 22. Rxc6 {[%emt 0:01:30]} bxc6 {[%emt 0:00:30]} 23. Nd4 {[%emt 0:03:30]} Be4 {[%emt 0:08:30]} 24. f3 {[%emt 0:03:30]} Bd5 {[%emt 0:04:30]} 25. Nxd5 {[%emt 0:02:30]} Bxd4+ {[%emt 0:00:30]} 26. Rxd4 {[%emt 0:00:30]} Nxd5 {[%emt 0:00:30]} 27. Kf2 {[%emt 0:03:30]} f5 {[%emt 0:00:00]} 28. Bg5 {[%emt 0:00:30]} Kf7 {[%emt 0:01:00]} 29. Ra4 {[%emt 0:02:30]} Ra8 {[%emt 0:02:30]} 30. Ke2 {[%emt 0:00:54]} Ke6 {[%emt 0:03:30] 6} 31. Kd3 {[%emt 0:01:57]} c5 {[%emt 0:04:30] 9} 32. Be3 {[%emt 0:01:25]} Nxe3 {[%emt 0:07:30] 1} 33. Kxe3 {[%emt 0:00:30]} Kd5 {[%emt 0:00:00] ] [%clk 0:28:0]} 1/2-1/2

[Event "26th Troya Open 2018"]
[Site "Canakkale"]
[Date "2018.08.11"]
[Round "9.15"]
[White "Ileri, Oktay"]
[Black "Celik, Meric"]
[Result "1-0"]
[ECO "B14"]
[WhiteElo "1697"]
[BlackElo "1471"]
[Annotator "NA"]
[PlyCount "79"]
[EventDate "2018.08.06"]
[EventType "swiss"]
[EventCountry "TUR"]
[SourceTitle "playchess.com"]
[Source "ChessBase"]
[SourceQuality "1"]
[TimeControl "5400+30"]

1. d4 {[%emt 0:00:30]} Nf6 {[%emt 0:00:30]} 2. c4 {[%emt 0:00:30]} c5 {[%emt 0:00:30]} 3. e3 {[%emt 0:00:30]} e6 {[%emt 0:02:30]} 4. Nf3 {[%emt 0:01:30]} cxd4 {[%emt 0:04:30]} 5. exd4 {[%emt 0:00:30]} d5 {[%emt 0:00:00]} 6. Bg5 {[%emt 0:00:30]} Be7 {[%emt 0:01:00]} 7. Nc3 {[%emt 0:00:30]} O-O {[%emt 0:05:30]} 8. c5 {[%emt 0:02:30]} Nc6 {[%emt 0:06:30]} 9. Bd3 {[%emt 0:23:30]} Bd7 {[%emt 0:12:30]} 10. a3 {[%emt 0:01:30]} b6 {[%emt 0:02:30]} 11. b4 {[%emt 0:00:30]} bxc5 {[%emt 0:00:30]} 12. bxc5 {[%emt 0:00:30]} h6 {[%emt 0:17:30]} 13. Bd2 {[%emt 0:04:30]} Re8 {[%emt 0:10:30]} 14. O-O {[%emt 0:00:30]} Bf8 {[%emt 0:00:30]} 15. Re1 {[%emt 0:00:30]} Nh7 {[%emt 0:08:30]} 16. h3 {[%emt 0:06:30]} f5 {[%emt 0:02:30]} 17. Bb5 {[%emt 0:08:30]} g5 {[%emt 0:09:05]} 18. Bxc6 {[%emt 0:00:30] 5} Bxc6 {[%emt 0:00:05]} 19. Ne5 {[%emt 0:00:30] 5} Qc7 {[%emt 0:00:16]} 20. Qh5 {[%emt 0:00:30] ]} Bg7 {[%emt 0:00:43]} 21. h4 {[%emt 0:02:30] 1} Bxe5 {[%emt 0:04:27]} 22. Rxe5 {[%emt 0:00:30] 4} Qg7 {[%emt 0:00:30]} 23. hxg5 {[%emt 0:00:30] 4} Nxg5 {[%emt 0:00:30]} 24. Rae1 {[%emt 0:00:30] 4} Qf6 {[%emt 0:02:13]} 25. Nxd5 {[%emt 0:03:30] ]} Bxd5 {[%emt 0:00:42]} 26. Rxd5 {[%emt 0:00:00] 9} Ne4 {[%emt 0:00:33]} 27. Rxe4 {[%emt 0:01:00] 5} fxe4 {[%emt 0:00:27]} 28. Re5 {[%emt 0:02:30] ]} Kh7 {[%emt 0:01:13]} 29. Rxe4 {[%emt 0:00:30] 6} Rg8 {[%emt 0:02:34] [%clk 0:04.56]} 30. Rf4 {[%emt 0:08:30]} Qg6 {[%emt 0:00:46]} 31. Qh3 {[%emt 0:00:30]} Rad8 {[%emt 0:00:30]} 32. Rh4 {[%emt 0:00:30]} Qb1+ {[%emt 0:04:26]} 33. Kh2 {[%emt 0:00:30]} Rg6 {[%emt 0:00:30]} 34. Rxh6+ {[%emt 0:00:30]} Kg7 {[%emt 0:00:30]} 35. Rh7+ {[%emt 0:00:30]} Kf8 {[%emt 0:00:30]} 36. Rh8+ {[%emt 0:00:30]} Rg8 {[%emt 0:00:30]} 37. Rxg8+ {[%emt 0:00:30]} Kxg8 {[%emt 0:00:30]} 38. Qxe6+ {[%emt 0:00:00]} Kh8 {[%emt 0:01:12]} 39. Qf6+ {[%emt 0:00:00]} Kg8 {[%emt 0:00:30]} 40. Qxd8+ {[%emt 0:00:00]} 1-0

[Event "26th Troya Open 2018"]
[Site "Canakkale"]
[Date "2018.08.11"]
[Round "9.16"]
[White "Altundasar, Yigit Bora"]
[Black "Cetinkaya, Umut Can"]
[Result "0-1"]
[ECO "B48"]
[WhiteElo "1538"]
[BlackElo "1593"]
[Annotator "NA"]
[PlyCount "106"]
[EventDate "2018.08.06"]
[EventType "swiss"]
[EventCountry "TUR"]
[SourceTitle "playchess.com"]
[Source "ChessBase"]
[SourceQuality "1"]
[TimeControl "5400+30"]

1. e4 {[%emt 0:00:30] 2} c5 {[%emt 0:00:30] 2} 2. Nf3 {[%emt 0:00:30] 2} e6 {[%emt 0:00:30]} 3. d4 {[%emt 0:00:30]} cxd4 {[%emt 0:00:30]} 4. Nxd4 {[%emt 0:00:00]} a6 {[%emt 0:00:00]} 5. a3 {[%emt 0:00:00]} Qc7 {[%emt 0:09:00]} 6. Nc3 {[%emt 0:01:30]} Nf6 {[%emt 0:00:30]} 7. Be2 {[%emt 0:01:30]} Nc6 {[%emt 0:00:30]} 8. Be3 {[%emt 0:03:30]} d6 {[%emt 0:05:30]} 9. O-O {[%emt 0:04:30]} Be7 {[%emt 0:01:30]} 10. Qd2 {[%emt 0:00:30]} Ne5 {[%emt 0:07:30]} 11. f3 {[%emt 0:01:30]} O-O {[%emt 0:06:30]} 12. Rad1 {[%emt 0:01:30]} b5 {[%emt 0:00:30]} 13. Rc1 {[%emt 0:06:30]} Bb7 {[%emt 0:01:30]} 14. Rfd1 {[%emt 0:00:30]} Rfd8 {[%emt 0:02:30]} 15. Bd3 {[%emt 0:04:30]} d5 {[%emt 0:12:30]} 16. exd5 {[%emt 0:06:30]} Nxd5 {[%emt 0:00:00]} 17. Nxd5 {[%emt 0:02:30]} Bxd5 {[%emt 0:01:00]} 18. Qf2 {[%emt 0:03:30]} Rab8 {[%emt 0:08:30]} 19. c3 {[%emt 0:09:30]} Nxd3 {[%emt 0:17:30]} 20. Rxd3 {[%emt 0:00:30]} Rd7 {[%emt 0:04:02]} 21. Rcd1 {[%emt 0:00:30] 8} Rbd8 {[%emt 0:04:27]} 22. Kh1 {[%emt 0:03:30] 1} Bb3 {[%emt 0:02:56]} 23. Re1 {[%emt 0:06:30] 5} e5 {[%emt 0:00:41]} 24. Nxb3 {[%emt 0:00:30] 5} Rxd3 {[%emt 0:01:10]} 25. Bb6 {[%emt 0:00:30] ]} Qb8 {[%emt 0:06:14]} 26. Bxd8 {[%emt 0:01:30] 0} Rxd8 {[%emt 0:00:54]} 27. Qe2 {[%emt 0:01:30] 6} Qd6 {[%emt 0:00:43]} 28. g3 {[%emt 0:02:30] 3} Bf6 {[%emt 0:01:53]} 29. Kg2 {[%emt 0:00:30] 3} Qd5 {[%emt 0:00:34]} 30. Qc2 {[%emt 0:00:30] ]} g6 {[%emt 0:00:43]} 31. Re2 {[%emt 0:01:30] 3 [%clk 0:34:0]} Bg5 {[%emt 0:01:57]} 32. Rf2 {[%emt 0:08:30]} f5 {[%emt 0:00:30]} 33. Re2 {[%emt 0:00:30]} Kf7 {[%emt 0:00:30]} 34. Kf2 {[%emt 0:00:30]} Qd6 {[%emt 0:00:30]} 35. Re1 {[%emt 0:02:30]} Bf6 {[%emt 0:01:24]} 36. Ke2 {[%emt 0:00:30]} Qd5 {[%emt 0:00:30]} 37. Rd1 {[%emt 0:00:30]} Qxd1+ {[%emt 0:00:30]} 38. Qxd1 {[%emt 0:00:00]} Rxd1 {[%emt 0:00:00]} 39. Kxd1 {[%emt 0:00:00]} Be7 {[%emt 0:00:29]} 40. Kd2 {[%emt 0:00:30]} Ke6 {[%emt 0:00:30]} 41. Kd3 {[%emt 0:00:30]} Kd5 {[%emt 0:00:15]} 42. Nd2 {[%emt 0:05:30]} Bg5 {[%emt 0:00:52]} 43. b3 {[%emt 0:01:30]} Bxd2 {[%emt 0:00:57]} 44. Kxd2 {[%emt 0:00:30]} e4 {[%emt 0:01:01]} 45. Ke3 {[%emt 0:00:00]} exf3 {[%emt 0:00:48]} 46. Kxf3 {[%emt 0:00:00]} a5 {[%emt 0:00:34]} 47. Ke3 {[%emt 0:00:30]} g5 {[%emt 0:00:34]} 48. h4 {[%emt 0:03:40]} h6 {[%emt 0:00:01]} 49. c4+ {[%emt 0:03:32]} bxc4 {[%emt 0:00:40]} 50. b4 {[%emt 0:00:06]} axb4 {[%emt 0:01:01]} 51. axb4 {[%emt 0:00:03]} Kc6 {[%emt 0:00:20]} 52. Kd4 {[%emt 0:00:44]} Kb5 {[%emt 0:00:30]} 53. Kc3 {[%emt 0:00:00]} gxh4 {[%emt 0:00:07]} 0-1

[Event "26th Troya Open 2018"]
[Site "Canakkale"]
[Date "2018.08.11"]
[Round "9.17"]
[White "Cevizci, Yusuf Baran"]
[Black "Guralp, Ozgur Ozan"]
[Result "1/2-1/2"]
[ECO "C54"]
[WhiteElo "1713"]
[BlackElo "1418"]
[Annotator "NA"]
[PlyCount "40"]
[EventDate "2018.08.06"]
[EventType "swiss"]
[EventCountry "TUR"]
[SourceTitle "playchess.com"]
[Source "ChessBase"]
[SourceQuality "1"]
[TimeControl "5400+30"]

1. e4 {[%emt 0:01:30]} e5 {[%emt 0:00:30]} 2. Nf3 {[%emt 0:02:30]} Nc6 {[%emt 0:00:30]} 3. Bc4 {[%emt 0:03:30]} Bc5 {[%emt 0:00:30]} 4. c3 {[%emt 0:02:30]} Nf6 {[%emt 0:01:30]} 5. d3 {[%emt 0:03:30]} d6 {[%emt 0:00:30]} 6. O-O {[%emt 0:01:30]} O-O {[%emt 0:01:30]} 7. h3 {[%emt 0:01:30]} a6 {[%emt 0:00:30]} 8. Re1 {[%emt 0:01:30]} Ba7 {[%emt 0:06:30]} 9. Bb3 {[%emt 0:00:30]} Ne7 {[%emt 0:02:30]} 10. Be3 {[%emt 0:03:30]} Ng6 {[%emt 0:01:30]} 11. Nbd2 {[%emt 0:02:30]} Re8 {[%emt 0:06:30]} 12. Nf1 {[%emt 0:01:30]} Be6 {[%emt 0:08:30]} 13. Bc2 {[%emt 0:02:30]} h6 {[%emt 0:03:30]} 14. d4 {[%emt 0:01:30]} c6 {[%emt 0:02:30]} 15. Ng3 {[%emt 0:01:30]} Qc7 {[%emt 0:10:30]} 16. Qd2 {[%emt 0:03:30]} Qe7 {[%emt 0:14:30]} 17. Nf5 {[%emt 0:03:30]} Qf8 {[%emt 0:02:30]} 18. Rad1 {[%emt 0:06:30]} d5 {[%emt 0:11:30]} 19. dxe5 {[%emt 0:01:30]} Nxe4 {[%emt 0:00:00]} 20. Bxe4 {[%emt 0:03:30]} dxe4 {[%emt 0:00:00]} 1/2-1/2